bitfinex-derivatives/quotes_BTCF0:USTF0_20250910
["timestamp","ask_amount","ask_price","bid_price","bid_amount"]
[1757502033415,0.40197517,112360.0,112350.0,0.0089]
[1757502034410,1.20973517,112360.0,112350.0,0.12434548]
[1757502035110,1.20973517,112360.0,112350.0,0.03016]
[1757502035310,1.20973517,112360.0,112350.0,0.12434548]
[1757502036314,1.20973517,112360.0,112350.0,0.03016]
[1757502039415,0.95973517,112360.0,112350.0,0.03016]
[1757502042814,0.86538969,112360.0,112350.0,0.03016]
[1757502043115,0.95957517,112360.0,112350.0,0.12434548]
[1757502043714,0.95957517,112360.0,112350.0,0.03016]
[1757502043914,0.95957517,112360.0,112350.0,0.12434548]
[1757502045517,0.95957517,112360.0,112350.0,0.03016]
[1757502045717,0.95965517,112360.0,112350.0,0.12434548]
[1757502048817,0.95965517,112360.0,112350.0,0.03016]
[1757502049019,0.95965517,112360.0,112350.0,0.12434548]
[1757502050417,1.00674385,112360.0,112350.0,0.17143416]
[1757502053616,1.00674385,112360.0,112350.0,0.18523416]
[1757502054914,1.00674385,112360.0,112350.0,0.04396]
[1757502055120,1.00674385,112360.0,112350.0,0.18523416]
[1757502055723,1.00674385,112360.0,112350.0,0.04396]
[1757502055922,0.85263969,112360.0,112350.0,0.18523416]
[1757502056223,0.04495969,112360.0,112350.0,0.18523416]
[1757502056423,0.85263969,112360.0,112350.0,0.18523416]
[1757502056620,0.04495969,112360.0,112350.0,0.18523416]
[1757502057324,0.85155969,112360.0,112350.0,0.18523416]
[1757502057825,0.04295969,112360.0,112350.0,0.18523416]
[1757502058024,0.85055969,112360.0,112350.0,0.18523416]
[1757502058522,0.99183385,112360.0,112350.0,0.18523416]
[1757502058723,0.99383385,112360.0,112350.0,0.18523416]
[1757502059926,0.85255969,112360.0,112350.0,0.18523416]
[1757502060127,0.99383385,112360.0,112350.0,0.18523416]
[1757502060525,0.04495969,112360.0,112350.0,0.18523416]
[1757502060823,0.02315969,112360.0,112350.0,0.95498855]
[1757502061026,0.04419969,112360.0,112350.0,0.95498855]
[1757502061229,0.04319969,112360.0,112350.0,0.95498855]
[1757502061418,0.04219969,112360.0,112350.0,0.95498855]
[1757502062726,0.02204,112360.0,112350.0,0.95498855]
[1757502063129,0.02204,112360.0,112350.0,1.02501993]
[1757502066635,0.001,112360.0,112350.0,1.16629409]
[1757502066836,0.37363,112400.0,112360.0,0.0138]
[1757502067035,0.55599035,112400.0,112390.0,0.16392416]
[1757502067336,1.44355127,112400.0,112390.0,0.16392416]
[1757502068334,0.04108619,112400.0,112390.0,0.54741416]
[1757502068539,0.99004035,112400.0,112390.0,0.54741416]
[1757502068830,0.84876619,112400.0,112390.0,0.54741416]
[1757502069030,0.84876619,112400.0,112390.0,0.55041416]
[1757502069237,0.84876619,112400.0,112390.0,0.55241416]
[1757502071232,0.84864619,112400.0,112390.0,0.69368832]
[1757502071727,0.84864619,112400.0,112390.0,0.69068832]
[1757502071934,0.85164619,112400.0,112390.0,0.68868832]
[1757502074338,0.8316,112400.0,112390.0,0.68868832]
[1757502074947,0.02404,112400.0,112390.0,0.68868832]
[1757502075349,0.02404,112400.0,112390.0,0.93868832]
[1757502077452,0.04394349,112400.0,112390.0,0.93868832]
[1757502079450,0.02290349,112400.0,112390.0,0.93868832]
[1757502079650,0.04426349,112400.0,112390.0,0.93868832]
[1757502080852,0.04426349,112400.0,112390.0,1.01143484]
[1757502084959,0.04426349,112400.0,112390.0,1.28053484]
[1757502086566,0.02290349,112400.0,112390.0,1.421809]
[1757502087057,0.02290349,112400.0,112390.0,1.28053484]
[1757502087256,0.003,112400.0,112390.0,1.28053484]
[1757502091961,0.003,112400.0,112390.0,1.03053484]
[1757502092161,0.003,112400.0,112390.0,1.979289]
[1757502092561,0.003,112400.0,112390.0,1.83801484]
[1757502095164,0.003,112400.0,112390.0,1.83793484]
[1757502096767,0.003,112400.0,112390.0,1.83837484]
[1757502100471,0.0229547,112400.0,112390.0,1.83837484]
[1757502101177,0.02295622,112400.0,112390.0,1.83837484]
[1757502101477,0.003,112400.0,112390.0,1.83837484]
[1757502102175,0.02295744,112400.0,112390.0,1.83837484]
[1757502103176,0.02295744,112400.0,112390.0,2.19917484]
[1757502104675,0.003,112400.0,112390.0,2.19917484]
[1757502105375,0.003,112400.0,112390.0,2.19889484]
[1757502106682,0.0229634,112400.0,112390.0,2.19885484]
[1757502107370,0.003,112400.0,112390.0,2.19885484]
[1757502107677,0.02296448,112400.0,112390.0,2.19885484]
[1757502108773,0.003,112400.0,112390.0,2.19885484]
[1757502109683,0.003,112400.0,112390.0,2.38807952]
[1757502110179,0.003,112400.0,112390.0,2.24680536]
[1757502110382,0.003,112400.0,112390.0,2.15237688]
[1757502113387,0.003,112400.0,112390.0,2.10442636]
[1757502115488,0.003,112400.0,112390.0,2.19848628]
[1757502115890,0.003,112400.0,112390.0,2.10442636]
[1757502116090,0.02181,112430.0,112420.0,0.03541]
[1757502116286,0.04144461,112430.0,112420.0,0.49026992]
[1757502116991,0.04144461,112430.0,112420.0,0.39621]
[1757502117296,0.04144461,112430.0,112420.0,0.4051]
[1757502117496,0.04144461,112430.0,112420.0,0.60220949]
[1757502117790,0.04144461,112430.0,112420.0,0.60620949]
[1757502118393,0.04144461,112430.0,112420.0,0.60720949]
[1757502120889,0.04144461,112430.0,112420.0,0.24640949]
[1757502121095,0.04144461,112430.0,112420.0,0.60720949]
[1757502128511,0.04144461,112430.0,112420.0,0.59821984]
[1757502140010,0.04144461,112430.0,112420.0,0.59421984]
[1757502140216,0.04144461,112430.0,112420.0,0.59321984]
[1757502151920,0.02181,112430.0,112420.0,0.59321984]
[1757502152217,0.04171009,112430.0,112420.0,0.59321984]
[1757502153321,0.04171009,112430.0,112420.0,0.23241984]
[1757502153515,0.04171009,112430.0,112420.0,0.59321984]
[1757502169933,0.04171009,112430.0,112420.0,0.23241984]
[1757502170235,0.04171009,112430.0,112420.0,0.59321984]
[1757502170435,0.04171009,112430.0,112420.0,0.6872118]
[1757502177437,0.04171009,112430.0,112420.0,0.73519511]
[1757502178031,0.04171009,112430.0,112420.0,0.09228331]
[1757502178229,1.61311599,112430.0,112420.0,0.00889]
[1757502178633,1.61311599,112430.0,112420.0,0.1499459]
[1757502178938,0.02322,112410.0,112400.0,0.44586331]
[1757502179134,0.99888599,112410.0,112400.0,0.22611921]
[1757502179334,0.99888599,112410.0,112400.0,0.1781359]
[1757502179530,0.99888599,112410.0,112400.0,0.1643459]
[1757502182237,0.99888599,112410.0,112400.0,0.1653459]
[1757502182935,0.04312009,112410.0,112400.0,0.6810818]
[1757502183143,0.01990009,112410.0,112400.0,1.0721377]
[1757502183337,0.01990009,112410.0,112400.0,1.0711377]
[1757502183534,0.40606,112420.0,112410.0,0.03717]
[1757502183841,0.42649318,112420.0,112410.0,0.1782259]
[1757502184044,0.42649318,112420.0,112410.0,0.5390259]
[1757502185138,0.42649318,112420.0,112410.0,0.1782259]
[1757502187338,0.56754908,112420.0,112410.0,0.1782259]
[1757502187737,0.56754908,112420.0,112410.0,0.02329]
[1757502187738,0.93633908,112420.0,112410.0,0.02329]
[1757502188041,0.93633908,112420.0,112410.0,0.1643459]
[1757502193541,1.18633908,112420.0,112410.0,0.1643459]
[1757502196943,0.93633908,112420.0,112400.0,0.1549359]
[1757502197148,0.93633908,112420.0,112410.0,0.1410559]
[1757502197348,1.07739498,112420.0,112410.0,0.1410559]
[1757502197945,0.02858,112410.0,112400.0,0.1637359]
[1757502198147,0.19006908,112410.0,112400.0,0.1637359]
[1757502199349,0.1987561,112410.0,112400.0,0.1637359]
[1757502202952,0.01299,112400.0,112390.0,0.50559242]
[1757502203147,0.84171,112400.0,112390.0,0.25917242]
[1757502204246,0.9827659,112400.0,112390.0,0.25028242]
[1757502204954,1.00331619,112400.0,112390.0,0.25128242]
[1757502205449,0.86226029,112400.0,112390.0,0.25128242]
[1757502205648,0.86226029,112400.0,112390.0,0.26017242]
[1757502206151,0.86230029,112400.0,112390.0,0.26017242]
[1757502206755,0.04243029,112400.0,112390.0,0.26017242]
[1757502207253,0.84931029,112400.0,112390.0,0.25917242]
[1757502208758,0.84931029,112400.0,112390.0,0.11811652]
[1757502209063,0.84931029,112400.0,112390.0,0.25917242]
[1757502209450,0.99036619,112400.0,112390.0,0.25917242]
[1757502210652,0.99036619,112400.0,112390.0,0.04537]
[1757502210958,1.75521209,112400.0,112390.0,0.00889]
[1757502212556,1.75521209,112400.0,112390.0,0.1499459]
[1757502212857,0.80727619,112400.0,112390.0,0.1726259]
[1757502213058,1.61419619,112400.0,112390.0,0.1726259]
[1757502213657,0.80727619,112400.0,112390.0,0.1726259]
[1757502213861,1.61419619,112400.0,112390.0,0.1726259]
[1757502216962,0.80727619,112400.0,112390.0,0.1726259]
[1757502217265,1.61423619,112400.0,112390.0,0.1726259]
[1757502217462,0.80727619,112400.0,112390.0,0.1726259]
[1757502217759,1.61423619,112400.0,112390.0,0.1726259]
[1757502219155,1.61423619,112400.0,112390.0,0.03157]
[1757502219466,1.36423619,112400.0,112390.0,0.1726259]
[1757502221970,0.55727619,112400.0,112390.0,0.1726259]
[1757502222264,1.36423619,112400.0,112390.0,0.1726259]
[1757502222963,0.55727619,112400.0,112390.0,0.1726259]
[1757502223262,1.36423619,112400.0,112390.0,0.1726259]
[1757502224664,1.35124619,112400.0,112390.0,0.1865959]
[1757502227157,1.36423619,112400.0,112390.0,0.1865959]
[1757502228062,1.22318029,112400.0,112390.0,0.1865959]
[1757502228258,1.36423619,112400.0,112390.0,0.1865959]
[1757502230463,1.3172947,112400.0,112390.0,0.13965441]
[1757502231666,1.3172947,112400.0,112390.0,0.12568441]
[1757502235171,1.3172947,112400.0,112390.0,0.00889]
[1757502240167,1.22318029,112400.0,112390.0,0.03053]
[1757502240368,1.3172947,112400.0,112390.0,0.12464441]
[1757502242865,0.41622029,112400.0,112390.0,0.12464441]
[1757502243067,1.21015029,112400.0,112390.0,0.13861441]
[1757502244066,1.3042647,112400.0,112390.0,0.13861441]
[1757502244667,1.3172547,112400.0,112390.0,0.13861441]
[1757502247670,1.3172547,112400.0,112390.0,0.12464441]
[1757502249666,1.3172547,112400.0,112390.0,0.00889]
[1757502249872,1.41136911,112400.0,112390.0,0.00889]
[1757502250073,1.66136911,112400.0,112390.0,0.00889]
[1757502254366,0.02934,112370.0,112360.0,0.06400775]
[1757502254675,0.9508847,112370.0,112360.0,0.02201]
[1757502255975,0.1440047,112370.0,112360.0,0.02401]
[1757502256276,0.95967677,112370.0,112360.0,0.02501]
[1757502257176,0.95967677,112370.0,112360.0,0.02401]
[1757502259080,0.95967677,112370.0,112360.0,0.02201]
[1757502259286,0.86556236,112370.0,112360.0,0.02201]
[1757502259475,0.95967677,112370.0,112360.0,0.02201]
[1757502259980,0.95967677,112370.0,112360.0,0.11612441]
[1757502260383,0.95967677,112370.0,112360.0,0.02201]
[1757502263574,0.95967677,112370.0,112350.0,0.48663715]
[1757502264084,0.03563,112360.0,112350.0,0.50864715]
[1757502264281,0.1502947,112360.0,112350.0,0.50864715]
[1757502264677,0.12974441,112360.0,112350.0,0.02201]
[1757502264881,0.15032117,112360.0,112350.0,0.02201]
[1757502265272,0.15032117,112360.0,112340.0,0.44469231]
[1757502265583,0.8296,112350.0,112340.0,0.46670231]
[1757502265885,0.8296,112350.0,112340.0,0.73580231]
[1757502266272,0.8296,112350.0,112340.0,0.82991672]
[1757502267282,0.8296,112350.0,112340.0,0.75959441]
[1757502268484,0.92371441,112350.0,112340.0,0.66548]
[1757502268880,0.02264,112350.0,112340.0,0.85370882]
[1757502269086,0.62508,112350.0,112340.0,0.85370882]
[1757502269985,0.83324,112350.0,112340.0,0.85370882]
[1757502271485,0.83324,112350.0,112340.0,1.10370882]
[1757502271878,0.83324,112350.0,112340.0,0.83460882]
[1757502272278,0.02264,112350.0,112340.0,0.83460882]
[1757502272481,0.63884,112350.0,112340.0,0.83460882]
[1757502277787,0.63884,112350.0,112340.0,1.10370882]
[1757502279390,0.63884,112350.0,112340.0,0.85370882]
[1757502281592,0.02264,112350.0,112340.0,0.85370882]
[1757502283097,0.37273,112380.0,112340.0,0.85370882]
[1757502283299,0.02199,112360.0,112350.0,0.39535]
[1757502284195,0.04259762,112360.0,112350.0,0.39535]
[1757502284395,0.04259762,112360.0,112350.0,0.48946441]
[1757502292110,0.04359762,112360.0,112350.0,0.48946441]
[1757502292308,0.04359762,112360.0,112350.0,0.53659251]
[1757502298117,0.02160762,112360.0,112350.0,0.92783502]
[1757502298320,2.36726674,112390.0,112380.0,0.03455]
[1757502298522,2.76465163,112390.0,112380.0,0.17579251]
[1757502299624,3.14877163,112390.0,112380.0,0.17579251]
[1757502300417,2.33993163,112390.0,112380.0,0.17579251]
[1757502300618,3.00740912,112390.0,112380.0,0.31703502]
[1757502300917,3.00840912,112390.0,112380.0,0.31703502]
[1757502301217,2.19968912,112390.0,112380.0,0.31703502]
[1757502301415,3.00836912,112390.0,112380.0,0.31703502]
[1757502301617,3.00836912,112390.0,112380.0,0.17579251]
[1757502302222,2.64756912,112390.0,112380.0,0.17579251]
[1757502302521,2.64756912,112390.0,112380.0,0.31703502]
[1757502303622,2.64656912,112390.0,112380.0,0.31703502]
[1757502306123,2.64656912,112390.0,112380.0,0.03455]
[1757502306424,2.64656912,112390.0,112380.0,0.31703502]
[1757502307224,2.64656912,112390.0,112380.0,0.17579251]
[1757502307823,1.83788912,112390.0,112380.0,0.17579251]
[1757502308018,1.83788912,112390.0,112380.0,0.31703502]
[1757502308223,2.64624912,112390.0,112380.0,0.31703502]
[1757502310830,0.85092912,112390.0,112380.0,0.31703502]
[1757502317134,1.00410163,112390.0,112380.0,0.17579251]
[1757502317436,0.03418,112380.0,112370.0,0.79387251]
[1757502317632,0.19600163,112380.0,112370.0,0.29183]
[1757502317836,0.69804414,112380.0,112360.0,0.3608]
[1757502318034,0.97713251,112370.0,112360.0,0.52477251]
[1757502318225,0.99771163,112370.0,112360.0,0.52477251]
[1757502319937,0.99771163,112370.0,112360.0,0.16397251]
[1757502325142,0.99774719,112370.0,112360.0,0.16397251]
[1757502330548,0.84980468,112370.0,112360.0,0.17708251]
[1757502330750,0.99104719,112370.0,112360.0,0.17708251]
[1757502331652,0.84980468,112370.0,112360.0,0.31832502]
[1757502331852,0.99104719,112370.0,112360.0,0.17708251]
[1757502332650,0.99104771,112370.0,112360.0,0.17708251]
[1757502332851,0.8498052,112370.0,112360.0,0.31832502]
[1757502333351,0.8498052,112370.0,112360.0,0.67912502]
[1757502334652,0.8508052,112370.0,112360.0,0.67912502]
[1757502335354,0.8518052,112370.0,112360.0,0.67912502]
[1757502336855,0.83119,112370.0,112360.0,0.67912502]
[1757502337553,0.85180482,112370.0,112360.0,0.67912502]
[1757502343662,0.83001482,112370.0,112360.0,0.92912502]
[1757502344159,0.02261482,112370.0,112360.0,0.92912502]
[1757502344659,0.83005482,112370.0,112360.0,0.92912502]
[1757502345257,0.02261482,112370.0,112360.0,1.07036753]
[1757502345857,0.002,112370.0,112360.0,1.07036753]
[1757502346057,0.002,112370.0,112360.0,1.33946753]
[1757502346660,0.002,112370.0,112360.0,1.40347528]
[1757502346962,0.001,112370.0,112360.0,1.40347528]
[1757502347163,0.001,112370.0,112360.0,1.40447528]
[1757502347565,0.82904,112380.0,112370.0,0.03574]
[1757502347764,0.84967684,112380.0,112370.0,0.67902502]
[1757502349262,0.84967684,112380.0,112370.0,0.17698251]
[1757502349964,0.85067684,112380.0,112370.0,0.17698251]
[1757502350166,0.85167684,112380.0,112370.0,0.17698251]
[1757502354466,0.85167684,112380.0,112370.0,0.12988279]
[1757502356071,0.85167684,112380.0,112370.0,0.49068279]
[1757502364684,0.85159684,112380.0,112370.0,0.49068279]
[1757502365481,0.85155684,112380.0,112370.0,0.49068279]
[1757502365681,0.85155684,112380.0,112370.0,0.58482558]
[1757502365877,0.02263684,112380.0,112370.0,1.10392558]
[1757502366079,0.02260856,112380.0,112370.0,1.10392558]
[1757502366284,0.002,112380.0,112370.0,1.64206558]
[1757502367083,0.7476,112400.0,112390.0,0.01383]
[1757502367287,0.76820592,112400.0,112390.0,0.12988279]
[1757502374696,0.76820592,112400.0,112390.0,0.22402558]
[1757502374896,0.76820592,112400.0,112390.0,0.12988279]
[1757502382101,0.76820592,112400.0,112390.0,0.49068279]
[1757502382302,0.84940592,112400.0,112390.0,0.58482558]
[1757502382906,0.04190285,112400.0,112390.0,0.58482558]
[1757502383204,0.02168,112400.0,112390.0,0.58482558]
[1757502384108,1.81831,112420.0,112410.0,0.03632]
[1757502384405,2.64565082,112420.0,112410.0,0.13046279]
[1757502385305,2.74629361,112420.0,112400.0,0.46810279]
[1757502385605,0.48447279,112410.0,112390.0,0.73787279]
[1757502385906,0.82991,112400.0,112390.0,0.76103279]
[1757502386304,0.95077383,112400.0,112390.0,0.6299]
[1757502386499,1.21743134,112400.0,112390.0,0.2691]
[1757502386802,1.56157413,112400.0,112390.0,0.2691]
[1757502387599,1.56157413,112400.0,112380.0,0.02316]
[1757502387600,0.03476,112390.0,112380.0,0.02316]
[1757502387806,0.05498519,112390.0,112380.0,0.02316]
[1757502388407,0.05498519,112390.0,112370.0,0.75534839]
[1757502388594,0.82987,112380.0,112370.0,0.77850839]
[1757502388799,0.92401279,112380.0,112370.0,0.0544656]
[1757502389103,0.95074149,112380.0,112360.0,0.75533154]
[1757502389297,0.8565987,112380.0,112360.0,0.75533154]
[1757502390203,1.2173987,112380.0,112360.0,0.75533154]
[1757502390905,1.2173987,112380.0,112360.0,0.66118875]
[1757502391106,1.2173987,112380.0,112360.0,0.75533154]
[1757502391602,1.2173987,112380.0,112360.0,0.66118875]
[1757502391798,1.31154149,112380.0,112360.0,0.66118875]
[1757502392002,0.12367279,112370.0,112360.0,0.41524875]
[1757502392205,0.5046988,112370.0,112360.0,0.01812875]
[1757502392405,0.5046988,112370.0,112350.0,0.64306]
[1757502392601,0.82991,112360.0,112350.0,0.76036279]
[1757502392999,1.18055279,112360.0,112340.0,0.37396]
[1757502393307,0.82991,112350.0,112340.0,0.49126279]
[1757502395606,0.82991,112350.0,112340.0,0.49326279]
[1757502396300,0.82991,112350.0,112340.0,0.49126279]
[1757502397113,0.02283,112350.0,112340.0,0.49126279]
[1757502397320,0.82999,112350.0,112340.0,0.49126279]
[1757502397511,0.46355,112350.0,112340.0,0.49126279]
[1757502399716,0.83003,112350.0,112340.0,0.49126279]
[1757502401512,0.02283,112350.0,112340.0,0.49126279]
[1757502401709,0.83003,112350.0,112340.0,0.58540558]
[1757502404513,0.83003,112350.0,112340.0,0.49126279]
[1757502406817,0.02283,112350.0,112340.0,0.49126279]
[1757502407015,0.83007,112350.0,112340.0,0.58540558]
[1757502407220,0.69699,112350.0,112340.0,0.58540558]
[1757502408110,0.83007,112350.0,112340.0,0.58540558]
[1757502408513,0.83007,112350.0,112340.0,0.83540558]
[1757502408715,0.3608,112370.0,112360.0,0.01324]
[1757502408914,1.18932,112370.0,112360.0,0.13017279]
[1757502409822,0.82852,112370.0,112360.0,0.13017279]
[1757502413023,0.02128,112370.0,112360.0,0.13017279]
[1757502413224,0.82848,112370.0,112360.0,0.13017279]
[1757502414226,0.84884475,112370.0,112360.0,0.13017279]
[1757502414426,0.99009115,112370.0,112360.0,0.1772764]
[1757502414626,0.18289115,112370.0,112360.0,0.1772764]
[1757502414827,0.99009115,112370.0,112360.0,0.5380764]
[1757502415126,0.99009115,112370.0,112360.0,0.6793228]
[1757502415927,0.84884475,112370.0,112360.0,0.6793228]
[1757502418528,0.99009115,112370.0,112360.0,0.6793228]
[1757502418729,0.84884475,112370.0,112360.0,0.6793228]
[1757502418930,0.99009115,112370.0,112360.0,0.6793228]
[1757502419926,0.99009115,112370.0,112360.0,0.5380764]
[1757502420223,0.99009115,112370.0,112360.0,0.1772764]
[1757502420430,0.99009115,112370.0,112360.0,0.3185228]
[1757502420828,0.18289115,112370.0,112360.0,0.3185228]
[1757502421029,0.99005115,112370.0,112360.0,0.3185228]
[1757502421429,0.84880475,112370.0,112360.0,0.3185228]
[1757502422129,0.99005115,112370.0,112360.0,0.3185228]
[1757502423931,0.85550475,112370.0,112360.0,0.6793228]
[1757502424131,0.84880475,112370.0,112360.0,0.3185228]
[1757502425536,0.99005115,112370.0,112360.0,0.3185228]
[1757502427838,0.99005115,112370.0,112360.0,0.6793228]
[1757502429040,0.99005115,112370.0,112360.0,0.3185228]
[1757502429339,0.84880475,112370.0,112360.0,0.3185228]
[1757502430845,0.84880475,112370.0,112360.0,0.03603]
[1757502431037,0.84880475,112370.0,112360.0,0.3185228]
[1757502431843,0.84880475,112370.0,112360.0,0.1772764]
[1757502432240,0.99005115,112370.0,112360.0,0.1772764]
[1757502432436,0.99675115,112370.0,112360.0,0.02279]
[1757502432744,1.35755115,112370.0,112360.0,0.1640364]
[1757502434038,1.35755115,112370.0,112360.0,0.1412464]
[1757502434446,1.35755115,112370.0,112350.0,0.5152864]
[1757502434745,0.1635964,112360.0,112350.0,0.39568]
[1757502434947,0.18396115,112360.0,112350.0,0.39568]
[1757502435841,0.33170755,112360.0,112340.0,0.7843064]
[1757502436042,0.82943,112350.0,112340.0,0.8059464]
[1757502436244,0.99104115,112350.0,112340.0,0.6647]
[1757502436449,0.99104115,112350.0,112340.0,0.8059464]
[1757502436748,0.84979475,112350.0,112340.0,0.8059464]
[1757502436950,0.84979475,112350.0,112340.0,0.9471928]
[1757502437338,0.84979475,112350.0,112340.0,0.6647]
[1757502437543,0.84979475,112350.0,112340.0,0.9471928]
[1757502438250,0.84979475,112350.0,112340.0,0.6780928]
[1757502446252,0.04791423,112380.0,112340.0,1.0874825]
[1757502446454,0.02235,112380.0,112370.0,0.6788128]
[1757502446656,0.49999,112380.0,112370.0,0.6788128]
[1757502448151,0.49999,112380.0,112370.0,0.5375664]
[1757502448350,1.0087364,112380.0,112370.0,0.03552]
[1757502448557,0.02235,112360.0,112350.0,0.39632]
[1757502448751,0.83051,112360.0,112350.0,0.5375664]
[1757502450157,0.83051,112360.0,112350.0,0.5385664]
[1757502452358,0.83051,112360.0,112350.0,0.5375664]
[1757502452757,0.83051,112360.0,112350.0,0.39632]
[1757502452954,0.83051,112360.0,112350.0,0.5375664]
[1757502459351,0.83051,112360.0,112350.0,0.39632]
[1757502459555,0.83051,112360.0,112350.0,0.5375664]
[1757502464657,0.9717564,112360.0,112350.0,0.5375664]
[1757502466771,0.83051,112360.0,112350.0,0.5375664]
[1757502467069,0.9717564,112360.0,112350.0,0.5375664]
[1757502467870,0.83051,112360.0,112350.0,0.5375664]
[1757502468765,0.9717564,112360.0,112350.0,0.5375664]
[1757502471570,0.83051,112360.0,112350.0,0.5375664]
[1757502471770,0.9717564,112360.0,112350.0,0.5375664]
[1757502473373,0.99214777,112360.0,112350.0,0.5375664]
[1757502474468,0.85090137,112360.0,112350.0,0.49049841]
[1757502477174,0.04274137,112360.0,112350.0,0.49049841]
[1757502477372,0.85014137,112360.0,112350.0,0.49049841]
[1757502484474,0.85017024,112360.0,112350.0,0.49049841]
[1757502490884,0.85017024,112360.0,112350.0,0.39632]
[1757502491079,0.85017024,112360.0,112350.0,0.49049841]
[1757502491285,0.95084865,112360.0,112350.0,0.39632]
[1757502491584,0.95084865,112360.0,112350.0,0.02164]
[1757502494187,0.95084865,112360.0,112340.0,0.48628171]
[1757502495795,0.95084865,112360.0,112340.0,0.48728171]
[1757502496185,0.95084865,112360.0,112340.0,0.3931033]
[1757502496485,0.95084865,112360.0,112340.0,0.48728171]
[1757502497884,0.95084865,112360.0,112340.0,0.48628171]
[1757502498186,0.95084865,112360.0,112340.0,0.3921033]
[1757502498386,0.95084865,112360.0,112340.0,0.48628171]
[1757502500187,0.01193,112350.0,112340.0,0.3608]
[1757502500490,0.03307,112350.0,112340.0,0.38373]
[1757502501692,0.0531065,112350.0,112340.0,0.02293]
[1757502501993,0.0531065,112350.0,112330.0,0.70778775]
[1757502502187,0.8283,112340.0,112330.0,0.73071775]
[1757502502386,0.8283,112340.0,112330.0,0.66671]
[1757502503389,0.8283,112340.0,112330.0,0.76088841]
[1757502504693,0.8283,112340.0,112330.0,0.76188841]
[1757502513801,0.8283,112340.0,112330.0,0.66771]
[1757502514003,0.8283,112340.0,112330.0,0.76188841]
[1757502514502,0.8283,112340.0,112330.0,0.78025716]
[1757502514702,0.02114,112340.0,112330.0,0.78025716]
[1757502515002,0.46414,112340.0,112330.0,0.78025716]
[1757502518203,0.02114,112340.0,112330.0,0.78025716]
[1757502520503,0.02114,112340.0,112330.0,0.84426491]
[1757502522206,0.01070122,112340.0,112330.0,0.84426491]
[1757502523609,0.01070122,112340.0,112330.0,0.84326491]
[1757502524407,0.02322,112350.0,112340.0,0.03523]
[1757502524611,0.01994987,112350.0,112340.0,0.63245908]
[1757502524811,0.70394,112360.0,112350.0,0.03523]
[1757502525011,0.72389059,112360.0,112350.0,0.53827916]
[1757502529518,0.72389059,112360.0,112350.0,0.49020841]
[1757502529814,0.72389059,112360.0,112350.0,0.53827916]
[1757502530013,0.72389059,112360.0,112350.0,0.49020841]
[1757502531315,0.04317059,112360.0,112350.0,0.49020841]
[1757502531515,0.85029059,112360.0,112350.0,0.49020841]
[1757502533411,0.944469,112360.0,112350.0,0.03523]
[1757502533619,0.944469,112360.0,112340.0,0.73696841]
[1757502533620,1.305269,112360.0,112340.0,0.73696841]
[1757502534217,1.305269,112360.0,112350.0,0.02234]
[1757502535213,1.555269,112360.0,112350.0,0.02234]
[1757502536320,1.60237957,112360.0,112350.0,0.02234]
[1757502536508,1.60237957,112360.0,112350.0,0.16362898]
[1757502543126,1.60237957,112360.0,112340.0,0.64279]
[1757502543322,1.35237957,112360.0,112350.0,0.16362898]
[1757502547117,1.35237957,112360.0,112350.0,0.17651898]
[1757502556030,1.35237957,112360.0,112350.0,0.16362898]
[1757502558329,1.35237957,112360.0,112350.0,0.17727898]
[1757502564244,1.21109059,112360.0,112350.0,0.17727898]
[1757502564445,1.35237957,112360.0,112350.0,0.17727898]
[1757502567251,1.49366855,112360.0,112350.0,0.17727898]
[1757502568153,1.21109059,112360.0,112350.0,0.17727898]
[1757502568346,1.35237957,112360.0,112350.0,0.17727898]
[1757502570349,1.35237957,112360.0,112350.0,0.03599]
[1757502570548,1.35237957,112360.0,112350.0,0.17727898]
[1757502574652,1.49366855,112360.0,112340.0,0.78407898]
[1757502574854,1.35237957,112360.0,112350.0,0.14128898]
[1757502575354,1.35237957,112360.0,112340.0,0.78407898]
[1757502575950,1.35237957,112360.0,112350.0,0.14128898]
[1757502576156,1.49366855,112360.0,112350.0,0.14128898]
[1757502576453,1.21109059,112360.0,112350.0,0.14128898]
[1757502576656,1.49366855,112360.0,112340.0,0.64279]
[1757502576854,0.16301898,112350.0,112340.0,0.80571898]
[1757502577054,0.04168059,112350.0,112340.0,0.80571898]
[1757502577852,0.18296957,112350.0,112340.0,0.94700796]
[1757502582259,0.18296957,112350.0,112340.0,0.80571898]
[1757502585758,0.55100957,112350.0,112340.0,0.3043]
[1757502586260,0.54376957,112350.0,112340.0,0.44558898]
[1757502588659,0.40248059,112350.0,112340.0,0.44558898]
[1757502588858,0.98988957,112350.0,112340.0,0.44558898]
[1757502589560,0.98988957,112350.0,112340.0,0.17648898]
[1757502590060,0.18296957,112350.0,112340.0,0.17648898]
[1757502590264,0.98988957,112350.0,112340.0,0.53728898]
[1757502590465,0.98988957,112350.0,112340.0,0.17648898]
[1757502591465,0.98988957,112350.0,112340.0,0.53728898]
[1757502592170,0.98988957,112350.0,112340.0,0.17648898]
[1757502594474,0.98984957,112350.0,112340.0,0.17648898]
[1757502596368,0.18296957,112350.0,112340.0,0.17648898]
[1757502596668,0.01995059,112350.0,112340.0,0.67857796]
[1757502596864,0.0202537,112360.0,112350.0,0.01318]
[1757502597070,0.8271337,112360.0,112350.0,0.69676504]
[1757502598367,0.8271337,112360.0,112350.0,0.50834358]
[1757502600065,0.0202537,112360.0,112350.0,0.60250008]
[1757502600261,0.8270937,112360.0,112350.0,0.85250008]
[1757502600462,0.0202537,112360.0,112350.0,0.85250008]
[1757502600670,0.06995423,112390.0,112380.0,0.01318]
[1757502600871,0.15616,112390.0,112380.0,0.223803]
[1757502601169,0.82888,112390.0,112380.0,0.1296465]
[1757502601362,0.82888,112390.0,112380.0,0.223803]
[1757502601762,0.82888,112390.0,112380.0,0.1296465]
[1757502602269,0.82888,112390.0,112380.0,0.03549]
[1757502602270,0.9230365,112390.0,112380.0,0.03549]
[1757502603359,0.9229965,112390.0,112380.0,0.03549]
[1757502603770,0.9229965,112390.0,112380.0,0.1296465]
[1757502603966,0.82884,112390.0,112380.0,0.1296465]
[1757502604476,0.8288,112390.0,112380.0,0.1296465]
[1757502604862,0.02204,112390.0,112380.0,0.1296465]
[1757502605358,0.8288,112390.0,112380.0,0.1296465]
[1757502606269,0.02204,112390.0,112380.0,0.1296465]
[1757502606466,0.82876,112390.0,112380.0,0.1296465]
[1757502610562,0.82876,112390.0,112380.0,0.03549]
[1757502610767,0.82876,112390.0,112380.0,0.1296465]
[1757502612269,0.9229165,112390.0,112380.0,0.1296465]
[1757502612977,0.82876,112390.0,112380.0,0.1296465]
[1757502616375,0.82876,112390.0,112380.0,0.03549]
[1757502616576,0.82876,112390.0,112380.0,0.1296465]
[1757502622375,0.84877889,112390.0,112380.0,0.1296465]